fUST/lending_fUST_20240227
["ID","MTS","AMOUNT","RATE_DAILY","PERIOD"]
[315247505,1708965041210,-745.36,0.00019726,2]
[315247507,1708965041219,-582.26,0.00019726,2]
[315247509,1708965041229,-500.0,0.00019726,2]
[315247511,1708965041238,-500.0,0.00019726,2]
[315247513,1708965041248,-500.0,0.00019726,2]
[315247515,1708965041257,-500.99,0.00019726,2]
[315247517,1708965041265,-500.0,0.00019726,2]
[315247519,1708965041275,-500.0,0.00019726,2]
[315247521,1708965041284,-500.0,0.00019726,2]
[315247523,1708965041293,-724.7,0.00019726,2]
[315247525,1708965041304,-1137.65,0.00019726,2]
[315247527,1708965041313,-1284.72,0.00019726,2]
[315247529,1708965041322,-1480.66,0.00019726,2]
[315247531,1708965041332,-888.97,0.00019726,2]
[315247533,1708965041341,-953.11,0.00019726,2]
[315247535,1708965041350,-1144.34,0.00019726,2]
[315247537,1708965041359,-7875.07,0.00019726,2]
[315247539,1708965041368,-1962.59,0.00019726,2]
[315247541,1708965041376,-500.0,0.00019726,2]
[315247543,1708965041385,-900.76,0.00019726,2]
[315247545,1708965041395,-829.59,0.00019726,2]
[315247546,1708965041404,-500.0,0.00019726,2]
[315247549,1708965041414,-500.0,0.00019726,2]
[315247550,1708965041423,-909.57,0.00019726,2]
[315247552,1708965041433,-4307.74,0.00019726,2]
[315247554,1708965041442,-500.0,0.00019726,2]
[315247557,1708965041452,-676.08,0.00019726,2]
[315247559,1708965041461,-7641.43,0.00019726,2]
[315247561,1708965041470,-3437.2,0.00019726,2]
[315247563,1708965041479,-1610.21,0.00019726,2]
[315247565,1708965041488,-500.0,0.00019803,2]
[315247567,1708965041497,-8230.24916882,0.0001989,2]
[315247569,1708965041506,-507.15,0.00019942,2]
[315247571,1708965041515,-630.2,0.00019942,2]
[315247573,1708965041525,-557.60219821,0.0002,2]
[315247575,1708965041534,-500.0,0.0002,2]
[315247577,1708965041543,-500.0,0.0002,2]
[315247578,1708965041552,-561.97,0.0002,2]
[315247580,1708965041561,-500.0,0.0002,2]
[315247582,1708965041570,-1255.44,0.0002,2]
[315247584,1708965041579,-561.56,0.0002,2]
[315247586,1708965041589,-500.0,0.0002,2]
[315247588,1708965041598,-794.58,0.0002,2]
[315247589,1708965041607,-745.36,0.0002,2]
[315247590,1708965041617,-582.26,0.0002,2]
[315247592,1708965041625,-500.0,0.0002,2]
[315247594,1708965041634,-500.0,0.0002,2]
[315247596,1708965041643,-500.99,0.0002,2]
[315247598,1708965041653,-500.0,0.0002,2]
[315247600,1708965041662,-500.0,0.0002,2]
[315247602,1708965041671,-500.0,0.0002,2]
[315247604,1708965041680,-724.7,0.0002,2]
[315247606,1708965041690,-1137.65,0.0002,2]
[315247608,1708965041699,-1284.72,0.0002,2]
[315247610,1708965041708,-1480.66,0.0002,2]
[315247612,1708965041717,-888.97,0.0002,2]
[315247614,1708965041729,-953.11,0.0002,2]
[315247616,1708965041738,-1144.34,0.0002,2]
[315247618,1708965041747,-7875.07,0.0002,2]
[315247620,1708965041756,-1962.59,0.0002,2]
[315247622,1708965041765,-500.0,0.0002,2]
[315247624,1708965041774,-900.76,0.0002,2]
[315247625,1708965041783,-829.59,0.0002,2]
[315247627,1708965041793,-500.0,0.0002,2]
[315247629,1708965041802,-500.0,0.0002,2]
[315247631,1708965041811,-909.57,0.0002,2]
[315247633,1708965041820,-4307.74,0.0002,2]
[315247635,1708965041831,-500.0,0.0002,2]
[315247646,1708965041935,-676.08,0.0002,2]
[315247648,1708965041945,-7641.43,0.0002,2]
[315247650,1708965041954,-3437.2,0.0002,2]
[315247652,1708965041963,-1610.21,0.0002,2]
[315247654,1708965041972,-500.0,0.00020008,2]
[315247656,1708965041982,-306.0,0.00020055,2]
[315247658,1708965041991,-166.666666,0.00020076,2]
[315247660,1708965042001,-191.51732978,0.00020097,2]
[315247662,1708965042011,-649.27159483,0.00020098,2]
[315247665,1708965042021,-382.14,0.00020128,3]
[315247666,1708965042030,-200.5826354,0.00020192,2]
[315247669,1708965042041,-200.5826354,0.00020192,2]
[315247671,1708965042051,-200.5826354,0.00020192,2]
[315247672,1708965042060,-341.90841762,0.00020199,2]
[315247674,1708965042069,-1284.23465312,0.00020199,2]
[315247676,1708965042078,-1679.56933157,0.00020199,2]
[315247678,1708965042089,-671.77270881,0.00020199,2]
[315247680,1708965042098,-229.75910383,0.00020199,2]
[315247683,1708965042107,-242.71891285,0.00020199,2]
[315247685,1708965042117,-200.0,0.000202,2]
[315247687,1708965042126,-48189.24415898,0.00020208,2]
[315247688,1708965042135,-3840.88800848,0.00020208,2]
[315247690,1708965042145,-35000.0,0.00020208,2]
[315247692,1708965042154,-13307.84824942,0.00020208,2]
[315247694,1708965042163,-500.0,0.00020213,2]
[315247696,1708965042174,-507.15,0.00020216,2]
[315247699,1708965042183,-630.2,0.00020216,2]
[315247700,1708965042193,-500.0,0.00020273,2]
[315247702,1708965042202,-500.0,0.00020273,2]
[315247704,1708965042211,-561.97,0.00020273,2]
[315247705,1708965042220,-500.0,0.00020273,2]
[315247708,1708965042229,-1255.44,0.00020273,2]
[315247709,1708965042239,-561.56,0.00020273,2]
[315247711,1708965042248,-794.58,0.00020273,2]
[315247713,1708965042257,-745.36,0.00020273,2]
[315247715,1708965042266,-582.26,0.00020273,2]
[315247717,1708965042276,-500.0,0.00020273,2]
[315247719,1708965042285,-500.0,0.00020273,2]
[315247721,1708965042294,-500.99,0.00020273,2]
[315247723,1708965042304,-500.0,0.00020273,2]
[315247725,1708965042313,-500.0,0.00020273,2]
[315247727,1708965042323,-500.0,0.00020273,2]
[315247729,1708965042332,-724.7,0.00020273,2]
[315247731,1708965042341,-1137.65,0.00020273,2]
[315247733,1708965042350,-1284.72,0.00020273,2]
[315247735,1708965042359,-1480.66,0.00020273,2]
[315247737,1708965042368,-888.97,0.00020273,2]
[315247739,1708965042378,-953.11,0.00020273,2]
[315247741,1708965042388,-1144.34,0.00020273,2]
[315247743,1708965042397,-7875.07,0.00020273,2]
[315247745,1708965042407,-1962.59,0.00020273,2]
[315247747,1708965042416,-900.76,0.00020273,2]
[315247749,1708965042425,-829.59,0.00020273,2]
[315247751,1708965042435,-500.0,0.00020273,2]
[315247753,1708965042444,-909.57,0.00020273,2]
[315247755,1708965042453,-4307.74,0.00020273,2]
[315247757,1708965042463,-500.0,0.00020273,2]
[315247759,1708965042472,-676.08,0.00020273,2]
[315247761,1708965042482,-7641.43,0.00020273,2]
[315247763,1708965042493,-3437.2,0.00020273,2]
[315247764,1708965042503,-1212.4364456,0.00020328,2]
[315247766,1708965042512,-500.0,0.00020418,2]
[315247768,1708965042522,-153.0,0.00020466,2]
[315247770,1708965042532,-926.4246673,0.00020478,2]
[315247772,1708965042542,-507.15,0.0002049,2]
[315247774,1708965042552,-630.2,0.0002049,2]
[315247776,1708965042561,-166.666666,0.00020524,2]
[315247777,1708965042571,-500.0,0.00020547,2]
[315247779,1708965042580,-500.0,0.00020547,2]
[315247781,1708965042591,-561.97,0.00020547,2]
[315247783,1708965042600,-599.73406629,0.00020547,2]
[315247785,1708965042609,-1255.44,0.00020547,2]
[315247787,1708965042618,-561.56,0.00020547,2]
[315247789,1708965042628,-794.58,0.00020547,2]
[315247791,1708965042637,-745.36,0.00020547,2]
[315247792,1708965042646,-582.26,0.00020547,2]
[315247794,1708965042655,-500.0,0.00020547,2]
[315247796,1708965042664,-500.0,0.00020547,2]
[315247798,1708965042673,-500.99,0.00020547,2]
[315247800,1708965042684,-500.0,0.00020547,2]
[315247802,1708965042693,-500.0,0.00020547,2]
[315247803,1708965042702,-500.0,0.00020547,2]
[315247805,1708965042711,-724.7,0.00020547,2]
[315247806,1708965042720,-1137.65,0.00020547,2]
[315247807,1708965042729,-1284.72,0.00020547,2]
[315247808,1708965042739,-1480.66,0.00020547,2]
[315247809,1708965042748,-888.97,0.00020547,2]
[315247810,1708965042758,-953.11,0.00020547,2]
[315247811,1708965042767,-1144.34,0.00020547,2]
[315247812,1708965042780,-7875.07,0.00020547,2]
[315247813,1708965042789,-1962.59,0.00020547,2]
[315247814,1708965042798,-900.76,0.00020547,2]
[315247815,1708965042808,-829.59,0.00020547,2]
[315247816,1708965042818,-500.0,0.00020547,2]
[315247818,1708965042828,-909.57,0.00020547,2]
[315247820,1708965042840,-4307.74,0.00020547,2]
[315247822,1708965042850,-500.0,0.00020547,2]
[315247823,1708965042859,-676.08,0.00020547,2]
[315247825,1708965042867,-7641.43,0.00020547,2]
[315247827,1708965042877,-3437.2,0.00020547,2]
[315247829,1708965042886,-580.0,0.000206,2]
[315247831,1708965042896,-500.0,0.00020623,2]
[315247834,1708965042905,-1000.0,0.00020752,2]
[315247837,1708965042915,-507.15,0.00020764,2]
[315247839,1708965042925,-630.2,0.00020764,2]
[315247841,1708965042936,-500.0,0.00020821,2]
[315247843,1708965042945,-500.0,0.00020821,2]
[315247845,1708965042954,-561.97,0.00020821,2]
[315247847,1708965042963,-1255.44,0.00020821,2]
[315247849,1708965042973,-561.56,0.00020821,2]
[315247851,1708965042982,-794.58,0.00020821,2]
[315247853,1708965042992,-745.36,0.00020821,2]
[315247855,1708965043001,-582.26,0.00020821,2]
[315247859,1708965043012,-500.0,0.00020821,2]
[315247863,1708965043021,-500.0,0.00020821,2]
[315247867,1708965043031,-500.99,0.00020821,2]
[315247870,1708965043040,-500.0,0.00020821,2]
[315247874,1708965043049,-500.0,0.00020821,2]
[315247878,1708965043060,-500.0,0.00020821,2]
[315247882,1708965043069,-724.7,0.00020821,2]
[315247885,1708965043078,-1137.65,0.00020821,2]
[315247888,1708965043089,-1284.72,0.00020821,2]
[315247891,1708965043099,-1480.66,0.00020821,2]
[315247894,1708965043108,-888.97,0.00020821,2]
[315247898,1708965043118,-953.11,0.00020821,2]
[315247901,1708965043127,-1144.34,0.00020821,2]
[315247903,1708965043136,-7875.07,0.00020821,2]
[315247906,1708965043146,-1962.59,0.00020821,2]
[315247909,1708965043156,-900.76,0.00020821,2]
[315247912,1708965043166,-829.59,0.00020821,2]
[315247914,1708965043175,-500.0,0.00020821,2]
[315247916,1708965043185,-909.57,0.00020821,2]
[315247919,1708965043194,-4307.74,0.00020821,2]
[315247921,1708965043203,-500.0,0.00020821,2]
[315247924,1708965043212,-676.08,0.00020821,2]
[315247927,1708965043222,-7641.43,0.00020821,2]
[315247929,1708965043231,-3437.2,0.00020821,2]
[315247931,1708965043241,-500.0,0.00020828,2]
[315247933,1708965043250,-163.40269544,0.00020895,2]
[315247935,1708965043259,-151.0,0.000209,2]
[315247937,1708965043268,-191.51732978,0.000209,2]
[315247939,1708965043278,-166.666666,0.00020973,2]
[315247941,1708965043287,-1000.0,0.00020993,2]
[315247943,1708965043296,-1000.0,0.00020993,2]
[315247945,1708965043307,-1000.0,0.00020993,2]
[315247947,1708965043316,-1000.0,0.00020993,2]
[315247949,1708965043325,-1000.0,0.00020993,2]
[315247951,1708965043337,-5000.0,0.00020998,2]
[315247953,1708965043347,-399.333294,0.00020999,2]
[315247955,1708965043356,-500.0,0.00020999,2]
[315247957,1708965043366,-500.0,0.00020999,2]
[315247959,1708965043375,-500.0,0.00020999,2]
[315247961,1708965043385,-500.0,0.00020999,2]
[315247963,1708965043394,-319.09963093,0.00020999,2]
[315247965,1708965043403,-399.333294,0.00020999,2]
[315247967,1708965043412,-500.0,0.00020999,2]
[315247969,1708965043421,-500.0,0.00020999,2]
[315247971,1708965043431,-500.0,0.00020999,2]
[315247973,1708965043440,-500.0,0.00020999,2]
[315247975,1708965043449,-399.333294,0.00020999,2]
[315247977,1708965043458,-500.0,0.00020999,2]
[315247979,1708965043469,-500.0,0.00020999,2]
[315247981,1708965043478,-500.0,0.00020999,2]
[315247983,1708965043487,-500.0,0.00020999,2]
[315247985,1708965043496,-500.0,0.00020999,2]
[315247986,1708965043506,-500.0,0.00020999,2]
[315247988,1708965043515,-500.0,0.00020999,2]
[315247990,1708965043524,-500.0,0.00020999,2]
[315247992,1708965043533,-500.0,0.00020999,2]
[315247994,1708965043542,-500.0,0.00020999,2]
[315247996,1708965043552,-500.0,0.00020999,2]
[315247998,1708965043561,-500.0,0.00020999,2]
[315248000,1708965043570,-477.14339324,0.00020999,2]
[315248002,1708965043579,-500.0,0.00020999,2]
[315248003,1708965043590,-500.0,0.00020999,2]
[315248005,1708965043599,-2953.68273435,0.00021,3]
[315248007,1708965043608,-174127.58187944,0.00021,2]
[315248009,1708965043618,-206.22265138,0.00021,2]
[315248011,1708965043627,-151.0,0.00021,2]
[315248013,1708965043637,-151.0,0.00021,2]
[315248015,1708965043646,-299.94859112,0.00021,2]
[315248016,1708965043654,-151.0,0.00021,2]
[315248018,1708965043664,-151.0,0.00021,2]
[315248020,1708965043673,-70619.65449792,0.00021,2]
[315248022,1708965043683,-231.161232,0.00021,2]
[315248025,1708965043695,-450540.60437713,0.00021,2]
[315248027,1708965043713,-11524.58016791,0.00021,2]
[315248049,1708965043935,-1600.10761346,0.00016685,2]
[315248050,1708965043944,-260.80335718,0.00020273,2]
[315248576,1708965049471,-1048.8,0.00019178,2]
[315248578,1708965049481,-500.0,0.00019178,2]
[315248580,1708965049492,-1048.8,0.00019452,2]
[315248582,1708965049501,-500.0,0.00019452,2]
[315248584,1708965049510,-267.30048083,0.00019726,2]
[315248586,1708965049523,-781.49951917,0.00019726,2]
[315248588,1708965049532,-500.0,0.00019726,2]
[315248590,1708965049541,-1048.8,0.0002,2]
[315248592,1708965049550,-500.0,0.0002,2]
[315248594,1708965049559,-1025.62237683,0.00020273,2]
[315248601,1708965049621,-323.78426599,0.00020273,2]
[315248603,1708965049630,-1048.8,0.00020273,2]
[315248605,1708965049639,-500.0,0.00020273,2]
[315248607,1708965049648,-1610.21,0.00020547,2]
[315248609,1708965049657,-1048.8,0.00020547,2]
[315248611,1708965049666,-500.0,0.00020547,2]
[315248613,1708965049675,-1610.21,0.00020821,2]
[315248615,1708965049684,-1048.8,0.00020821,2]
[315248617,1708965049694,-500.0,0.00020821,2]
[315248619,1708965049703,-5049.43,0.0002099,3]
[315248621,1708965049712,-41064.86473763,0.00021,2]
[315248640,1708965049919,-20557.64298912,0.00021,2]
[315249681,1708965187326,1000.0,0.00021,21]
[315249764,1708965546966,-677.52336534,0.0001678,2]
[315249765,1708965546987,-704.27292795,0.00016781,2]
[315249766,1708965547015,-281.44189552,0.00016781,2]
[315249767,1708965547036,-1600.10761346,0.00016781,2]
[315249768,1708965547058,-273.88290382,0.00016782,2]
[315249769,1708965547078,-161.77129391,0.00016783,2]
[315249779,1708965614306,-37817.03442562,0.00016782,2]
[315249780,1708965614328,-160.37160509,0.00016783,2]
[315249781,1708965614350,-1349.28299849,0.00016783,2]
[315249782,1708965614371,-10140.12920366,0.00016783,2]
[315249783,1708965614390,-40642.18176714,0.00016783,2]
[315249789,1708965708632,-428.36024684,0.00016775,2]
[315249790,1708965708653,-392.48939103,0.00016775,2]
[315249791,1708965708674,-273.88290382,0.00016776,2]
[315249792,1708965708694,-155.04341216,0.00016777,2]
[315249793,1708965708714,-1600.10761346,0.00016777,2]
[315249794,1708965708733,-677.52336534,0.00016777,2]
[315249795,1708965708752,-37817.03442562,0.00016777,2]
[315249796,1708965708773,-4699.22949954,0.00016778,2]
[315249797,1708965708793,-281.44189552,0.00016778,2]
[315249798,1708965708813,-704.27292795,0.00016779,2]
[315249799,1708965708833,-300.77936664,0.00016781,2]
[315249800,1708965708853,-1902.474404,0.00016781,2]
[315249801,1708965708873,-1718.77128395,0.00016781,2]
[315249802,1708965708896,-743.86286849,0.00016781,2]
[315249803,1708965708916,-52782.72639564,0.00016783,2]
[315249809,1708965803358,250.0,0.00015777,2]
[315249810,1708965824168,2831.1683569,0.0001578,2]
[315249811,1708965827939,1972.8347367,0.00015775,2]
[315249813,1708965834914,24900.0,0.0001578,2]
[315249815,1708965848207,1650.4382546,0.00015773,2]
[315249816,1708965848240,290406.05938575,0.0001578,2]
[315249817,1708965848947,1349.28299849,0.0001578,2]
[315249823,1708965856204,-4699.22949954,0.00016663,2]
[315249824,1708965856226,-281.44189552,0.00016663,2]
[315249825,1708965856250,-273.88290382,0.00016663,2]
[315249826,1708965856271,-392.48939103,0.00016664,2]
[315249827,1708965856292,-1718.77128395,0.00016664,2]
[315249828,1708965856313,-677.52336534,0.00016664,2]
[315249829,1708965856333,-1600.10761346,0.00016664,2]
[315249830,1708965856356,-1862.69232421,0.00016665,2]
[315249831,1708965856379,-704.27292795,0.00016665,2]
[315249832,1708965856399,-11306.58879518,0.00016665,2]
[315249833,1708965864236,161336.69965875,0.0001578,2]
[315249834,1708965864938,702.97644221,0.0001578,2]
[315249835,1708965878338,41992.7868746,0.0001599,2]
[315249836,1708965880271,29178.82056115,0.0001578,2]
[315249837,1708965880306,1259.03277337,0.0001578,2]
[315249838,1708965880331,100000.0,0.0001578,2]
[315249839,1708965880360,9000.0,0.0001578,2]
[315249840,1708965880387,9000.0,0.0001578,2]
[315249841,1708965880415,12898.84632423,0.0001578,2]
[315249842,1708965882948,702.97644221,0.0001578,2]
[315249854,1708965926371,-300.0,0.00015989,2]
[315249855,1708965926393,-20097.0,0.0001599,2]
[315249863,1708966040735,668.608393,0.0001578,2]
[315249865,1708966064446,4729.56884056,0.0001578,2]
[315249872,1708966182292,281.44189552,0.000157,2]
[315249875,1708966219165,2267.1001226,0.00014779,2]
[315249876,1708966227700,3613.03205621,0.000157,2]
[315249877,1708966227730,1669.9752589,0.000157,2]
[315249878,1708966228991,17330.0247411,0.000157,2]
[315249985,1708966234501,-1600.10761346,0.00015699,2]
[315249987,1708966234511,-66726.39578111,0.000157,2]
[315249989,1708966234520,-702.97644221,0.000157,2]
[315249991,1708966234529,-704.27292795,0.000157,2]
[315249993,1708966234538,-163.40269544,0.00015701,2]
[315249995,1708966234550,-4699.22949954,0.00015775,2]
[315249997,1708966234559,-6397.81850647,0.00015776,2]
[315250035,1708966235185,184.5352824,0.00015331,2]
[315250091,1708966238731,-1718.77128395,0.00015699,2]
[315250093,1708966238741,-13304.85642928,0.00015776,2]
[315250095,1708966238752,-300.0,0.00015779,2]
[315250097,1708966238764,-162.80312384,0.0001589,2]
[315250099,1708966238786,-368.12000461,0.0001589,2]
[315250101,1708966238804,-394.1878927,0.0001632,2]
[315250103,1708966238821,-261.77212706,0.000165,2]
[315250105,1708966238844,-273.88290382,0.000165,2]
[315250107,1708966238859,-6023.85706943,0.00016666,2]
[315250109,1708966238868,-196.06132106,0.00016679,2]
[315250111,1708966238879,-172.80792212,0.00016783,2]
[315250113,1708966238888,-688.7777928,0.00017144,2]
[315250115,1708966238897,-290.0,0.00017256,2]
[315250117,1708966238907,-160.12079,0.00017521,2]
[315250119,1708966238916,-403.73530452,0.000186,2]
[315250121,1708966238924,-155.04341216,0.000189,2]
[315250122,1708966238933,-4349.50521531,0.000189,2]
[315250124,1708966238942,-557.60219821,0.00019,2]
[315250127,1708966238952,-367.1395761,0.00019078,2]
[315250128,1708966238961,-8771.39481509,0.00019164,2]
[315250130,1708966238970,-428.36024684,0.00019176,2]
[315250132,1708966238979,-222.68248534,0.00019176,2]
[315250134,1708966238989,-2716.85882889,0.00019176,2]
[315250136,1708966238998,-295.56467022,0.00019176,2]
[315250138,1708966239007,-1862.07953013,0.00019176,2]
[315250140,1708966239017,-290.05288383,0.00019176,2]
[315250142,1708966239026,-538.0,0.00019176,2]
[315250144,1708966239035,-281.52810052,0.00019176,2]
[315250146,1708966239044,-1212.46070112,0.00019177,2]
[315250148,1708966239058,-1212.44857324,0.00019177,2]
[315250150,1708966239067,-500.0,0.00019178,2]
[315250152,1708966239076,-500.0,0.00019178,2]
[315250154,1708966239086,-500.0,0.00019178,2]
[315250156,1708966239095,-207.50207294,0.00019178,2]
[315250158,1708966239105,-500.0,0.00019178,2]
[315250160,1708966239115,-500.0,0.00019178,2]
[315250162,1708966239124,-500.0,0.00019178,2]
[315250164,1708966239133,-500.0,0.00019178,2]
[315250166,1708966239142,-507.32053121,0.00019178,2]
[315250168,1708966239151,-604.16,0.00019178,2]
[315250170,1708966239160,-500.0,0.00019178,2]
[315250172,1708966239170,-500.0,0.00019178,2]
[315250174,1708966239179,-477.95314472,0.00019178,2]
[315250176,1708966239191,-1000.0,0.00019178,2]
[315250178,1708966239200,-500.0,0.00019178,2]
[315250180,1708966239209,-522.16106929,0.00019178,2]
[315250182,1708966239218,-500.0,0.00019178,2]
[315250184,1708966239228,-291.02772414,0.00019178,2]
[315250186,1708966239237,-500.0,0.00019178,2]
[315250187,1708966239247,-500.0,0.00019178,2]
[315250188,1708966239256,-409.80494479,0.00019178,2]
[315250189,1708966239268,-500.0,0.00019178,2]
[315250190,1708966239279,-500.0,0.00019178,2]
[315250191,1708966239290,-500.0,0.00019178,2]
[315250192,1708966239302,-500.0,0.00019178,2]
[315250193,1708966239313,-500.0,0.00019178,2]
[315250194,1708966239324,-231.56852676,0.00019178,2]
[315250195,1708966239333,-501.17230716,0.00019178,2]
[315250196,1708966239344,-300.35845883,0.00019178,2]
[315250197,1708966239353,-500.0,0.00019178,2]
[315250198,1708966239365,-500.33386123,0.00019178,2]
[315250199,1708966239374,-500.0,0.00019178,2]
[315250200,1708966239384,-500.0,0.00019178,2]
[315250201,1708966239394,-500.0,0.00019178,2]
[315250202,1708966239403,-500.0,0.00019178,2]
[315250203,1708966239413,-500.0,0.00019178,2]
[315250204,1708966239424,-500.0,0.00019178,2]
[315250205,1708966239434,-500.0,0.00019178,2]
[315250206,1708966239443,-604.40046169,0.00019178,2]
[315250207,1708966239453,-500.0,0.00019178,2]
[315250208,1708966239462,-562.37040375,0.00019178,2]
[315250209,1708966239472,-500.0,0.00019178,2]
[315250210,1708966239482,-500.0,0.00019178,2]
[315250212,1708966239493,-500.0,0.00019178,2]
[315250213,1708966239502,-500.0,0.00019178,2]
[315250215,1708966239511,-418.40116223,0.00019178,2]
[315250217,1708966239521,-500.0,0.00019178,2]
[315250219,1708966239530,-500.0,0.00019178,2]
[315250221,1708966239539,-500.0,0.00019178,2]
[315250223,1708966239550,-500.0,0.00019178,2]
[315250225,1708966239559,-500.0,0.00019178,2]
[315250227,1708966239569,-261.028789,0.00019178,2]
[315250229,1708966239578,-500.0,0.00019178,2]
[315250231,1708966239588,-500.65752268,0.00019178,2]
[315250233,1708966239597,-500.0,0.00019178,2]
[315250235,1708966239606,-500.0,0.00019178,2]
[315250237,1708966239616,-500.0,0.00019178,2]
[315250240,1708966239626,-500.7936119,0.00019178,2]
[315250242,1708966239635,-500.0,0.00019178,2]
[315250244,1708966239645,-209.13982258,0.00019178,2]
[315250246,1708966239654,-500.0,0.00019178,2]
[315250248,1708966239664,-500.0,0.00019178,2]
[315250250,1708966239673,-500.0,0.00019178,2]
[315250252,1708966239682,-500.0,0.00019178,2]
[315250254,1708966239692,-501.20981282,0.00019178,2]
[315250256,1708966239701,-500.0,0.00019178,2]
[315250258,1708966239711,-500.0,0.00019178,2]
[315250260,1708966239720,-500.0,0.00019178,2]
[315250262,1708966239729,-500.0,0.00019178,2]
[315250264,1708966239738,-457.65145341,0.00019178,2]
[315250266,1708966239747,-432.44409481,0.00019178,2]
[315250268,1708966239756,-500.0,0.00019178,2]
[315250270,1708966239765,-500.0,0.00019178,2]
[315250272,1708966239774,-501.7897385,0.00019178,2]
[315250274,1708966239783,-502.47764759,0.00019178,2]
[315250276,1708966239793,-500.0,0.00019178,2]
[315250277,1708966239804,-500.0,0.00019178,2]
[315250279,1708966239813,-503.11301008,0.00019178,2]
[315250281,1708966239822,-500.0,0.00019178,2]
[315250282,1708966239831,-502.27989563,0.00019178,2]
[315250284,1708966239840,-431.63023226,0.00019178,2]
[315250286,1708966239850,-154.93802479,0.00019178,2]
[315250288,1708966239859,-500.0,0.00019178,2]
[315250290,1708966239868,-500.0,0.00019178,2]
[315250292,1708966239877,-500.0,0.00019178,2]
[315250294,1708966239887,-500.0,0.00019178,2]
[315250296,1708966239896,-500.0,0.00019178,2]
[315250298,1708966239905,-713.41,0.00019178,2]
[315250300,1708966239914,-500.0,0.00019178,2]
[315250302,1708966239923,-581.87051322,0.00019178,2]
[315250304,1708966239932,-500.0,0.00019178,2]
[315250306,1708966239941,-318.97915559,0.00019178,2]
[315250308,1708966239950,-500.0,0.00019178,2]
[315250310,1708966239959,-501.78484159,0.00019178,2]
[315250312,1708966239968,-671.39,0.00019178,2]
[315250314,1708966239977,-500.0,0.00019178,2]
[315250316,1708966239986,-500.0,0.00019178,2]
[315250318,1708966239995,-500.0,0.00019178,2]
[315250320,1708966240004,-500.97209463,0.00019178,2]
[315250322,1708966240013,-500.0,0.00019178,2]
[315250324,1708966240022,-500.0,0.00019178,2]
[315250326,1708966240031,-500.0,0.00019178,2]
[315250327,1708966240040,-576.68,0.00019178,2]
[315250330,1708966240051,-500.0,0.00019178,2]
[315250331,1708966240060,-500.0,0.00019178,2]
[315250333,1708966240069,-500.0,0.00019178,2]
[315250335,1708966240078,-500.0,0.00019178,2]
[315250337,1708966240087,-500.0,0.00019178,2]
[315250339,1708966240096,-405.80118565,0.00019178,2]
[315250341,1708966240105,-500.0,0.00019178,2]
[315250343,1708966240115,-500.0,0.00019178,2]
[315250345,1708966240124,-500.0,0.00019178,2]
[315250347,1708966240133,-500.0,0.00019178,2]
[315250349,1708966240142,-500.0,0.00019178,2]
[315250351,1708966240151,-500.0,0.00019178,2]
[315250353,1708966240160,-501.82744386,0.00019178,2]
[315250355,1708966240175,-500.0,0.00019178,2]
[315250357,1708966240185,-712.06,0.00019178,2]
[315250359,1708966240196,-500.0,0.00019178,2]
[315250361,1708966240205,-500.0,0.00019178,2]